fUSD/lending_fUSD_20240323
["ID","MTS","AMOUNT","RATE_DAILY","PERIOD"]
[320095489,1711152338189,-185.0,0.00017132,2]
[320095490,1711152338210,-354.4650343,0.00017132,2]
[320095491,1711152442157,-504.737,0.00017046,2]
[320095492,1711152442180,-95.91338034,0.00017132,2]
[320095493,1711152591736,254.16,0.00016357,2]
[320095510,1711152633076,-167.0557108,0.00017132,2]
[320095511,1711152633086,-158.87495563,0.00017798,2]
[320095512,1711152633095,-5552.4504,0.000178,2]
[320095513,1711152633105,-171.4,0.00017808,10]
[320095514,1711152633115,-749.61091075,0.00017898,2]
[320095515,1711152633128,-198.86243614,0.00017898,2]
[320095516,1711152633137,-150.0,0.00017899,2]
[320095517,1711152633146,-85388.15988312,0.000179,3]
[320095518,1711152633155,-1000.0,0.000179,2]
[320095519,1711152633165,-492.2749,0.000179,2]
[320095520,1711152633175,-8872.9813,0.000179,2]
[320095521,1711152633184,-1000.0,0.000179,2]
[320095522,1711152633195,-2500.0,0.000179,2]
[320095523,1711152633205,-869.86999639,0.000179,2]
[320095524,1711152633216,-795.06889041,0.00017959,2]
[320095525,1711152633225,-8648.34017181,0.00017998,2]
[320095526,1711152633235,-165.34362689,0.00017998,2]
[320095527,1711152633246,-1635.16641652,0.00017998,2]
[320095528,1711152633256,-163.34469631,0.00017998,2]
[320095529,1711152633265,-155.0,0.00017998,2]
[320095530,1711152633275,-710.50919846,0.00017998,2]
[320095531,1711152633284,-261.89255077,0.00017998,2]
[320095532,1711152633294,-484.98586537,0.00017998,2]
[320095533,1711152633304,-204.52836682,0.00017999,2]
[320095534,1711152633313,-2492.60303015,0.00017999,2]
[320095535,1711152633323,-500.0,0.00017999,2]
[320095536,1711152633332,-500.0,0.00017999,2]
[320095537,1711152633342,-500.0,0.00017999,2]
[320095538,1711152633351,-500.0,0.00017999,2]
[320095539,1711152633361,-408.2477674,0.00017999,2]
[320095540,1711152633370,-527.0,0.00018,2]
[320095541,1711152633379,-173576.18135277,0.00018,2]
[320095542,1711152633388,-13857.33,0.00018,2]
[320095543,1711152633397,-154.42081066,0.00018006,2]
[320095544,1711152633406,-869.86999625,0.00018106,2]
[320095545,1711152633415,-869.86999625,0.00018312,2]
[320095546,1711152633425,-171.4,0.0001839,10]
[320095547,1711152633434,-152.49,0.0001846,2]
[320095548,1711152633444,-869.86999625,0.00018518,2]
[320095549,1711152633455,-801.38,0.00018584,2]
[320095550,1711152633465,-286.22,0.00018591,2]
[320095551,1711152633474,-169.74,0.00018614,2]
[320095552,1711152633483,-254.16,0.00018621,2]
[320095553,1711152633492,-421.56,0.00018644,2]
[320095554,1711152633501,-869.86999625,0.00018725,2]
[320095555,1711152633511,-2751.0,0.0001877,2]
[320095556,1711152633520,-154.42081066,0.00018822,2]
[320095557,1711152633529,-334.08818779,0.00018904,2]
[320095558,1711152633538,-178.50173059,0.00018904,2]
[320095559,1711152633547,-869.86999625,0.00018931,2]
[320095560,1711152633558,-171.4,0.00018972,10]
[320095561,1711152633567,-847.03497982,0.00018993,2]
[320095562,1711152633577,-160.02,0.00019034,2]
[320095563,1711152633586,-847.03497982,0.00019115,2]
[320095564,1711152633596,-157.90778457,0.00019133,2]
[320095565,1711152633605,-869.86999625,0.00019137,2]
[320095566,1711152633615,-250.0,0.00019138,2]
[320095567,1711152633624,-578.44,0.00019138,2]
[320095568,1711152633634,-156.56612691,0.00019194,2]
[320095569,1711152633643,-169.63902023,0.00019196,2]
[320095570,1711152633653,-745.7933639,0.00019232,2]
[320095571,1711152633663,-261.66072016,0.00019248,2]
[320095572,1711152633672,-166.66666666,0.00019338,2]
[320095573,1711152633681,-869.86999625,0.00019343,2]
[320095574,1711152633691,-157.90778457,0.00019358,2]
[320095575,1711152633701,-648.27795683,0.00019404,2]
[320095576,1711152633710,-648.27795683,0.00019531,2]
[320095577,1711152633720,-869.86999625,0.00019549,2]
[320095578,1711152633729,-171.4,0.00019553,10]
[320095579,1711152633738,-156.56612691,0.00019555,2]
[320095580,1711152633747,-166.52535599,0.00019593,2]
[320095581,1711152633756,-648.27795683,0.00019615,2]
[320095582,1711152633765,-166.66666666,0.00019623,2]
[320095583,1711152633774,-154.42081066,0.00019637,2]
[320095584,1711152633784,-154.29350386,0.00019652,2]
[320095585,1711152633793,-152.78766685,0.00019715,2]
[320095586,1711152633805,-847.03497982,0.00019717,2]
[320095587,1711152633815,-156.56612691,0.00019719,2]
[320095588,1711152633825,-156.55620872,0.00019734,2]
[320095589,1711152633834,-152.78766685,0.00019735,2]
[320095590,1711152633843,-648.27795683,0.00019755,2]
[320095591,1711152633853,-869.86999625,0.00019755,2]
[320095592,1711152633863,-156.55620872,0.00019806,2]
[320095593,1711152633872,-261.66072016,0.00019821,2]
[320095594,1711152633881,-168.68631045,0.00019831,2]
[320095595,1711152633893,-154.91546264,0.0001984,2]
[320095596,1711152633902,-468.36832026,0.00019847,2]
[320095597,1711152633912,-157.90778457,0.00019883,2]
[320095598,1711152633921,-295.47219008,0.00019959,2]
[320095599,1711152633932,-869.86999625,0.00019962,2]
[320095600,1711152633941,-847.03497982,0.00019977,2]
[320095601,1711152633951,-156.55620872,0.0001999,2]
[320095602,1711152633961,-161.17357204,0.0001999,2]
[320095603,1711152633970,-151.032309,0.00019999,3]
[320095604,1711152633980,-151.032309,0.00019999,3]
[320095605,1711152633989,-151.032309,0.00019999,3]
[320095606,1711152634000,-151.032309,0.00019999,3]
[320095607,1711152634010,-151.032309,0.00019999,3]
[320095608,1711152634019,-151.032309,0.00019999,3]
[320095609,1711152634029,-151.032309,0.00019999,3]
[320095610,1711152634038,-151.032309,0.00019999,3]
[320095611,1711152634049,-151.032309,0.00019999,3]
[320095612,1711152634059,-151.032309,0.00019999,3]
[320095613,1711152634069,-151.032309,0.00019999,2]
[320095614,1711152634078,-151.032309,0.00019999,2]
[320095615,1711152634088,-151.032309,0.00019999,2]
[320095616,1711152634097,-151.032309,0.00019999,2]
[320095617,1711152634106,-151.032309,0.00019999,2]
[320095618,1711152634117,-474374.46237136,0.0002,2]
[320095619,1711152634151,-71.01961502,0.0002,2]
[320095827,1711152640482,-662.70634916,0.0002,2]
[320095828,1711152640552,-850.25933855,0.0002,2]
[320095835,1711152640610,-2405.29125604,0.0002,2]
[320095837,1711152640622,-3502.8113362,0.0002,2]
[320095840,1711152640634,-2494.93655611,0.0002,2]
[320095954,1711152642410,-3110.93180372,0.0002,2]
[320095956,1711152642464,-453.8784,0.0002,2]
[320095957,1711152642477,-3140.5,0.0002,2]
[320095984,1711152644378,-6648.79999996,0.0002,2]
[320095985,1711152644390,-12744.4,0.0002,2]
[320095986,1711152644401,-1062.36811557,0.0002,2]
[320095987,1711152644413,-4298.25578167,0.0002,2]
[320095988,1711152644429,-2274.14468231,0.0002,2]
[320095989,1711152644441,-2945.62317664,0.0002,2]
[320095990,1711152644513,-3208.03480726,0.0002,2]
[320095991,1711152644546,-590999.99012118,0.0002,2]
[320095992,1711152644559,-316.69529775,0.0002,2]
[320095993,1711152644571,-9411.4019,0.0002,2]
[320095994,1711152644599,-400.36535376,0.0002,2]
[320095995,1711152644612,-446.51173508,0.0002,2]
[320095996,1711152644629,-652.69523004,0.0002,2]
[320095997,1711152644641,-1115.28590621,0.0002,2]
[320095998,1711152644658,-372.87092868,0.0002,2]
[320095999,1711152644754,-5209.77758685,0.0002,2]
[320096000,1711152644766,-1867.11047259,0.0002,2]
[320096001,1711152644779,-5041.3478715,0.0002,2]
[320096004,1711152646374,-702.78384429,0.0002,2]
[320096005,1711152646484,-1311.45372,0.0002,2]
[320096006,1711152646718,-2303.23243831,0.0002,2]
[320096007,1711152646733,-6051.12771701,0.0002,2]
[320096008,1711152646746,-17400.0,0.0002,2]
[320096009,1711152650588,893.6662,0.00016357,2]
[320096010,1711152941674,176.19,0.00014987,2]
[320096011,1711153468194,301.17,0.00016623,2]
[320096012,1711153538149,-491.11300418,0.00017999,5]
[320096013,1711153642145,-150.0263113,0.00017999,5]
[320096023,1711153831940,-200.86033844,0.00017909,2]
[320096024,1711153831950,-358.86068452,0.00017999,5]
[320096025,1711153831960,-537.24,0.00018552,2]
[320096026,1711153831970,-74.2150316,0.0001858,2]
[320096027,1711153832055,-175.7849684,0.0001858,2]
[320096028,1711153832065,-295.3947316,0.00018627,2]
[320096029,1711153832091,-1632.43062589,0.00018627,2]
[320096038,1711153837397,-703.42764,0.00018627,2]
[320096039,1711153837410,-3009.551005,0.00018627,2]
[320096040,1711153837423,-159.19599751,0.00018627,2]
[320096041,1711153837434,-5777.00400249,0.00018635,2]
[320096042,1711153837645,-22.99599751,0.00018635,2]
[320096043,1711153837654,-282.18698542,0.00018644,2]
[320096044,1711153837704,-5517.81301458,0.00018644,2]
[320096045,1711153837714,-5800.0,0.00018652,2]
[320096046,1711153837724,-5800.0,0.00018661,2]
[320096047,1711153837734,-5800.0,0.00018669,2]
[320096048,1711153837754,-5800.0,0.00018678,2]
[320096050,1711153837767,-5800.0,0.00018686,2]
[320096052,1711153837777,-533.58,0.00018692,2]
[320096054,1711153837787,-401.34263903,0.00018695,2]
[320096056,1711153837798,-5800.0,0.00018695,2]
[320096058,1711153837808,-462.76,0.00018698,2]
[320096060,1711153837818,-192.93,0.00018734,2]
[320096062,1711153837828,-150.79,0.00018734,2]
[320096064,1711153837839,-301.17,0.00018887,2]
[320096066,1711153837849,-151.01123555,0.0001898,2]
[320096068,1711153837860,-156.70510043,0.00018989,2]
[320096070,1711153837873,-244.21667215,0.00019019,2]
[320096072,1711153837883,-156.70510043,0.00019024,2]
[320096074,1711153837893,-159.94999475,0.00019063,2]
[320096076,1711153837903,-156.70510043,0.00019073,2]
[320096078,1711153837914,-171.46874453,0.00019076,2]
[320096080,1711153837924,-150.97447952,0.0001912,2]
[320096082,1711153837935,-244.21667215,0.00019122,2]
[320096084,1711153837945,-157.09271439,0.00019133,2]
[320096086,1711153837955,-171.46874453,0.00019189,2]
[320096088,1711153837965,-244.21667215,0.00019203,2]
[320096090,1711153837975,-461.90181581,0.00019212,2]
[320096093,1711153837986,-335.4313059,0.00019281,2]
[320096095,1711153837995,-150.97447952,0.00019284,2]
[320096097,1711153838005,-168.68631045,0.00019358,2]
[320096099,1711153838015,-154.91546264,0.00019393,2]
[320096101,1711153838025,-300.0,0.000194,7]
[320096103,1711153838035,-2500.0,0.00019421,2]
[320096105,1711153838045,-461.90181581,0.00019446,2]
[320096107,1711153838055,-475.14110608,0.00019455,2]
[320096109,1711153838069,-524.85889392,0.00019455,2]
[320096111,1711153838079,-171.46874453,0.00019498,2]
[320096113,1711153838089,-600.0,0.000195,7]
[320096116,1711153838099,-561.84089591,0.00019533,2]
[320096118,1711153838108,-244.21667215,0.00019568,2]
[320096120,1711153838119,-154.91546264,0.0001957,2]
[320096122,1711153838129,-166.5527312,0.00019592,2]
[320096124,1711153838139,-1000.0,0.000196,7]
[320096126,1711153838149,-167.93240816,0.00019603,2]
[320096128,1711153838159,-739.59326057,0.00019627,2]
[320096130,1711153838173,-571.34845737,0.00019628,2]
[320096132,1711153838183,-168.3221185,0.00019659,2]
[320096134,1711153838193,-150.79,0.0001967,2]
[320096137,1711153838205,-485.39685125,0.00019695,2]
[320096265,1711153839516,-85.95160612,0.00019695,2]
[320096267,1711153839526,-325.09210075,0.000197,7]
[320096269,1711153839539,-974.90789925,0.000197,7]
[320096271,1711153839549,-2500.0,0.00019755,2]
[320096273,1711153839559,-154.29350386,0.00019771,2]
[320096275,1711153839569,-1510.08674689,0.0001978,2]
[320096277,1711153839580,-335.4313059,0.00019785,2]
[320096279,1711153839590,-171.46874453,0.00019785,2]
[320096281,1711153839599,-335.4313059,0.00019788,2]
[320096283,1711153839608,-296.92163089,0.00019799,2]
[320096285,1711153839619,-697.45886278,0.000198,2]
[320096287,1711153839631,-10741.21653731,0.000198,2]
[320096290,1711153839644,-17751.64439991,0.000198,2]
[320096292,1711153839653,-984.74452,0.000198,2]
[320096294,1711153839663,-1700.0,0.000198,7]
[320096296,1711153839673,-154.42081066,0.000198,2]
[320096298,1711153839687,-561.84089591,0.00019802,2]
[320096300,1711153839696,-150.97447952,0.00019812,2]
[320096302,1711153839706,-571.34845737,0.00019834,2]
[320096304,1711153839716,-720.9335851,0.0001985,2]
[320096306,1711153839725,-561.84089591,0.00019866,2]
[320096309,1711153839735,-150.0,0.00019881,2]
[320096311,1711153839745,-154.91546264,0.00019889,2]
[320096313,1711153839755,-563.8,0.0001989,3]
[320096315,1711153839764,-217.86603582,0.00019898,2]
[320096317,1711153839774,-267.87154933,0.00019899,2]
[320096319,1711153839784,-8734.1381,0.000199,2]
[320096321,1711153839794,-500.0,0.000199,2]
[320096323,1711153839804,-10813.0696,0.000199,2]
[320096325,1711153839814,-16290.59353783,0.000199,2]
[320096329,1711153839844,-333.09317375,0.000199,2]
[320096332,1711153839856,-13123.5538,0.000199,2]
[320096335,1711153839883,-7085.95688103,0.000199,2]
[320096339,1711153839910,-396.0,0.000199,2]
[320096342,1711153839921,-1356.59500069,0.000199,2]
[320096344,1711153839935,-634.968,0.000199,2]
[320096348,1711153839966,-1949.28538,0.000199,2]
[320096351,1711153839977,-7017.00999995,0.000199,2]
[320096442,1711153842757,-2061.38052388,0.00018618,2]
[320096443,1711153842886,-3738.61947612,0.00018618,2]
[320096444,1711153842895,-507.21432147,0.00019898,2]
[320096445,1711153842905,-1108.35309966,0.000199,2]
[320096446,1711153842917,-4220.89484467,0.000199,2]
[320096447,1711153842928,-1840.93239178,0.000199,2]
[320096448,1711153843013,-510.753468,0.000199,2]
[320096449,1711153845539,-627.3950469,0.000199,2]
[320096450,1711153845554,-983.454,0.000199,2]
[320096451,1711153845630,-1346.74012887,0.000199,2]
[320096452,1711153845806,-1627.525,0.000199,2]
[320096453,1711153845860,-1750.00000001,0.000199,2]
[320096454,1711153845893,-3879.25729975,0.000199,2]
[320096457,1711153892049,356.38,0.00016635,2]
[320096458,1711154454655,338.56,0.00016208,2]
[320096468,1711154710988,948.79091697,0.00015398,2]
[320096469,1711154714687,341.66314673,0.00016208,2]
[320096470,1711154714810,178.66401072,0.00016208,2]
[320096471,1711154716538,291.12818161,0.00016208,2]
[320096472,1711154728155,363.66320945,0.00016208,2]
[320096473,1711154738149,-362.12724893,0.00018115,2]
[320096475,1711154850140,-816.89,0.00018089,2]
[320096476,1711154850160,-228.26,0.00018089,2]
[320096477,1711154850179,-684.42,0.00018105,2]
[320096478,1711154850199,-1460.64,0.00018105,2]
[320096479,1711154850219,-2823.72,0.00018115,2]
[320096480,1711154850242,-4016.51084446,0.00018115,2]
[320096481,1711154850262,-927.13,0.00018116,2]
[320096482,1711154850282,-196.53,0.00018117,2]
[320096483,1711154850302,-41.83381334,0.00018125,2]
[320096484,1711154890566,336.49,0.00016171,2]
[320096491,1711155031734,-150.0,0.00017965,2]
[320096492,1711155031743,-218.36047548,0.00017966,2]
[320096493,1711155031791,-8032.61250689,0.00017966,2]
[320096494,1711155031802,-684.71908266,0.00017966,2]
[320096495,1711155031813,-3316.64677374,0.00017966,2]
[320096496,1711155031856,-450.0,0.00017966,2]
[320096497,1711155031868,-13419.85412,0.00017966,2]
[320096520,1711155037662,-469.63768121,0.00017966,2]
[320096521,1711155037673,-898.60936002,0.00017966,2]
[320096522,1711155037682,-1148.83712832,0.00017987,2]
[320096523,1711155037702,-275.96458678,0.00017987,2]
[320096525,1711155037713,-417.8582849,0.00017987,2]
[320096527,1711155037722,-869.62997142,0.00018068,2]
[320096529,1711155037734,-723.348404,0.00018068,2]
[320096534,1711155037775,-311.50162458,0.00018068,2]
[320096536,1711155037784,-200.0,0.00018083,2]
[320096538,1711155037793,-500.0,0.00018084,2]
[320096539,1711155038038,-1090.39,0.00018084,2]
[320096540,1711155038047,-500.0,0.00018089,2]
[320096541,1711155038058,-124.10941881,0.00018125,2]
[320096542,1711155038067,-250.0,0.00018186,2]
[320096543,1711155038077,-200.0,0.00018208,2]
[320096544,1711155038086,-570.2,0.00018211,2]
[320096545,1711155038096,-235.36,0.00018216,2]
[320096546,1711155038105,-3296.01,0.00018216,2]
[320096547,1711155038114,-250.0,0.00018216,2]
[320096548,1711155038129,-429.8,0.00018216,2]
[320096549,1711155038138,-200.0,0.00018221,2]
[320096550,1711155038149,-150.99,0.00018221,2]
[320096551,1711155038159,-2091.45,0.00018221,2]
[320096552,1711155038169,-1643.76,0.00018229,2]
[320096553,1711155038179,-677.05,0.00018271,2]
[320096554,1711155038189,-152.51,0.00018353,2]
[320096555,1711155038199,-152.51,0.00018417,2]
[320096556,1711155038211,-336.49,0.00018435,2]
[320096558,1711155038222,-499.99,0.00018451,2]
[320096560,1711155038233,-152.86,0.00018469,2]
[320096562,1711155038243,-152.51,0.00018481,2]
[320096564,1711155038253,-152.51,0.00018545,2]
[320096566,1711155038264,-150.99,0.00018552,2]
[320096568,1711155038274,-394.3715806,0.00018567,2]
[320096571,1711155038287,-515.29338044,0.00018567,2]
[320096575,1711155038318,-1425.94447234,0.00018567,2]
[320096577,1711155038329,-3464.39056662,0.00018567,2]
[320096579,1711155038339,-5800.0,0.00018576,2]
[320096581,1711155038348,-5800.0,0.00018584,2]
[320096583,1711155038358,-8963.65768021,0.00018588,2]
[320096585,1711155038367,-5800.0,0.00018593,2]
[320096587,1711155038377,-5800.0,0.00018601,2]
[320096589,1711155038386,-152.51,0.00018608,2]
[320096591,1711155038396,-3351.53579524,0.0001861,2]
[320096594,1711155038412,-1745.55646344,0.0001861,2]
[320096595,1711155038424,-702.90774132,0.0001861,2]
[320096596,1711155038433,-152.51,0.00018672,2]
[320096597,1711155038442,-364.79001774,0.00018686,2]
[320096598,1711155038472,-406.46916604,0.00018686,2]
[320096599,1711155038484,-692.79472096,0.00018686,2]
[320096600,1711155038497,-3052.51684742,0.00018686,2]
[320096601,1711155038509,-1283.42924784,0.00018686,2]
[320096602,1711155038519,-1911.80333499,0.00018695,2]
[320096604,1711155038549,-289.30814126,0.00018695,2]
[320096606,1711155038561,-369.93113102,0.00018695,2]
[320096608,1711155038573,-1018.0311035,0.00018695,2]
[320096611,1711155038586,-2210.92628923,0.00018695,2]
[320096613,1711155038600,-152.51,0.00018736,2]
[320096615,1711155038610,-152.51,0.000188,2]
[320096617,1711155038620,-152.51,0.00018863,2]
[320096619,1711155038629,-408.84,0.00018897,2]
[320096621,1711155038639,-408.84,0.00018897,2]
[320096623,1711155038650,-408.84,0.00018897,2]
[320096625,1711155038660,-408.84,0.00018897,2]
[320096627,1711155038670,-1992.43,0.00018903,2]
[320096629,1711155038679,-152.51,0.00018927,2]
[320096632,1711155038689,-159.94999475,0.00018985,2]
[320096634,1711155038699,-152.51,0.00018991,2]
[320096636,1711155038708,-505.65680632,0.00019003,2]
[320096638,1711155038718,-165.94323215,0.00019013,2]
[320096640,1711155038729,-152.51,0.00019055,2]
[320096642,1711155038739,-431.10836142,0.00019064,2]
[320096644,1711155038748,-280.38669327,0.00019077,2]
[320096646,1711155038758,-696.9024656,0.00019118,2]
[320096648,1711155038767,-152.51,0.00019118,2]
[320096650,1711155038776,-159.94999475,0.00019148,2]
[320096652,1711155038786,-156.70510042,0.00019155,2]
[320096654,1711155038795,-152.51,0.00019182,2]
[320096656,1711155038805,-505.65680632,0.00019224,2]
[320096658,1711155038814,-696.9024656,0.00019233,2]
[320096660,1711155038824,-410.25,0.00019241,2]
[320096662,1711155038836,-152.51,0.00019246,2]
[320096664,1711155038847,-166.36181602,0.00019269,2]
[320096666,1711155038856,-696.9024656,0.00019275,2]
[320096668,1711155038866,-514.21361163,0.00019275,2]
[320096670,1711155038875,-152.51,0.0001931,2]
[320096672,1711155038886,-166.66666666,0.0001932,2]
[320096674,1711155038896,-431.10836142,0.00019402,2]
[320096676,1711155038905,-696.9024656,0.00019463,2]
[320096678,1711155038916,-154.91546265,0.00019497,2]
[320096680,1711155038926,-1155.15967371,0.00019634,2]
[320096682,1711155038936,-280.38669327,0.00019639,2]
[320096684,1711155038946,-165.18915039,0.00019656,2]
[320096686,1711155038955,-431.10836142,0.00019665,2]
[320096688,1711155038965,-514.21361163,0.00019673,2]
[320096690,1711155038974,-154.42081066,0.000197,2]
[320096692,1711155038985,-391.44149836,0.000197,2]
[320096694,1711155038994,-166.66666666,0.00019704,2]
[320096696,1711155039004,-391.44149831,0.00019711,2]
[320096698,1711155039014,-391.44149831,0.00019721,2]
[320096700,1711155039024,-391.44149831,0.00019732,2]
[320096703,1711155039038,-156.86878538,0.00019739,2]
[320096705,1711155039049,-391.44149831,0.00019742,2]
[320096707,1711155039059,-16.01198809,0.00019753,2]
[320096786,1711155039726,-375.42951022,0.00019753,2]
[320096788,1711155039736,-391.44149831,0.00019763,2]
[320096790,1711155039746,-391.44149831,0.00019774,2]
[320096792,1711155039755,-326.98833517,0.00019784,2]
[320096796,1711155039786,-64.45316314,0.00019784,2]
[320096798,1711155039796,-391.44149831,0.00019795,2]
[320096801,1711155039806,-250.32652607,0.00019799,2]
[320096802,1711155039816,-485.66580633,0.000198,2]
[320096805,1711155039829,-1153.5,0.000198,2]
[320096808,1711155039854,-452.68017388,0.000198,2]
[320096826,1711155040022,-664.40165721,0.000198,2]
[320096829,1711155040035,-291.72,0.000198,2]
[320096835,1711155040085,-2014.42266,0.000198,2]
[320096985,1711155042597,-3098.35923569,0.00018695,2]
[320096986,1711155042854,-854.53698622,0.00018695,2]
[320096987,1711155042864,-132.56873436,0.000198,2]
[320096988,1711155043445,-665.22089983,0.000198,2]
[320096989,1711155045860,-250.0,0.00019005,2]
[320096990,1711155045869,-165010.76052967,0.000198,2]
[320096991,1711155045940,-25080.075483,0.000198,2]
[320096992,1711155084819,175.09,0.00025263,120]
[320096997,1711155373458,447.87,0.0001658,2]
[320096998,1711155381382,176.2,0.00014792,2]
[320096999,1711155413010,60388.0,0.000255,120]
[320097000,1711155954166,-521.73368302,0.00017708,2]
[320097001,1711155987143,425.47,0.00016085,2]
[320097002,1711156035254,-521.86716826,0.00016922,2]
[320097003,1711156035276,-78.87093407,0.00017619,2]
[320097007,1711156231829,-425.866066,0.00017699,2]
[320097008,1711156231839,-185.0,0.00017788,2]
[320097009,1711156231849,-1504.01675366,0.00017789,2]
[320097010,1711156231861,-1498.73064634,0.00017789,2]
[320097011,1711156231871,-162.26017128,0.000178,2]
[320097012,1711156231880,-200.0,0.0001785,2]
[320097013,1711156232153,-150.0,0.00017853,2]
[320097014,1711156232185,-23713.32,0.00017853,2]
[320097015,1711156232199,-656.16,0.00017868,2]
[320097016,1711156232208,-250.0,0.00017888,2]
[320097017,1711156232218,-36560.1951866,0.00017889,2]
[320097018,1711156232227,-196.53,0.00017893,2]
[320097019,1711156232236,-32112.41948451,0.000179,3]
[320097020,1711156232245,-162.2601712,0.00018061,2]
[320097021,1711156232254,-154.15,0.00018086,2]
[320097022,1711156232263,-190.99,0.00018161,2]
[320097023,1711156232273,-250.0,0.00018162,2]
[320097024,1711156232283,-500.0,0.00018195,2]
[320097025,1711156232293,-408.84,0.000182,2]
[320097026,1711156232302,-408.84,0.000182,2]
[320097027,1711156232311,-3573.68,0.00018207,2]
[320097028,1711156232321,-243.74,0.00018212,2]
[320097029,1711156232329,-343.84,0.00018218,2]
[320097030,1711156232339,-154.15,0.00018221,2]
[320097031,1711156232347,-2350.25266795,0.00018221,2]
[320097033,1711156232375,-491.01788678,0.00018221,2]
[320097034,1711156232386,-269.91944527,0.00018221,2]
[320097035,1711156232395,-2.8075559,0.00018228,2]
[320097036,1711156232412,-170.2224441,0.00018228,2]
[320097037,1711156232421,-758.31442761,0.00018275,2]
[320097038,1711156232434,-250.0,0.00018275,2]
[320097039,1711156232448,-1374.8225,0.00018275,2]
[320097040,1711156232459,-467.15976627,0.00018275,2]
[320097041,1711156232471,-301.44505381,0.00018275,2]
[320097042,1711156232483,-6768.24582455,0.00018275,2]
[320097043,1711156232516,-2294.54242776,0.00018275,2]
[320097044,1711156232525,-408.84,0.000183,2]
[320097045,1711156232534,-162.2601712,0.00018321,2]
[320097046,1711156232544,-425.47,0.00018349,2]
[320097047,1711156232553,-399.3,0.00018351,2]
[320097048,1711156232563,-154.15,0.00018356,2]
[320097049,1711156232573,-200.0,0.00018411,2]
[320097050,1711156232582,-164.86,0.00018443,2]
[320097051,1711156232591,-150.99,0.00018482,2]
[320097052,1711156232600,-154.15,0.0001849,2]
[320097053,1711156232610,-164.86,0.00018558,2]
[320097054,1711156232619,-162.2601712,0.00018582,2]
[320097055,1711156232629,-499.99,0.00018594,2]
[320097056,1711156232638,-154.15,0.00018625,2]
[320097057,1711156232649,-29.12007769,0.00018635,2]
[320097058,1711156232668,-517.03439159,0.00018635,2]
[320097059,1711156232688,-1480.44578529,0.00018635,2]
[320097060,1711156232700,-2733.68,0.00018635,2]
[320097098,1711156238294,-821.47908491,0.00018635,2]
[320097101,1711156238306,-218.24066052,0.00018635,2]
[320097103,1711156238316,-180.03,0.00018643,2]
[320097105,1711156238325,-5800.0,0.00018644,2]
[320097137,1711156238622,-1957.55215552,0.00018652,2]
[320097141,1711156238650,-3842.44784448,0.00018652,2]
[320097143,1711156238659,-5800.0,0.00018661,2]
[320097145,1711156238668,-5800.0,0.00018669,2]
[320097146,1711156238677,-5800.0,0.00018669,2]
[320097148,1711156238686,-164.86,0.00018674,2]
[320097151,1711156238696,-5800.0,0.00018678,2]
[320097153,1711156238706,-5800.0,0.00018678,2]
[320097154,1711156238715,-5800.0,0.00018686,2]
[320097156,1711156238724,-401.34263903,0.00018695,2]
[320097158,1711156238734,-485.01292891,0.00018695,2]
[320097291,1711156239977,-330.35255677,0.00017879,2]
[320097293,1711156239987,-185.18716796,0.00018695,2]
[320097322,1711156240261,-5129.79990313,0.00018695,2]
[320097324,1711156240271,-499.99,0.00018695,2]
[320097326,1711156240283,-408.84,0.00018741,2]
[320097328,1711156240293,-154.15,0.0001876,2]
[320097330,1711156240302,-164.86,0.00018789,2]
[320097332,1711156240312,-162.2601712,0.00018843,2]
[320097334,1711156240321,-154.15,0.00018894,2]
[320097336,1711156240332,-164.86,0.00018904,2]
[320097339,1711156240342,-175.09,0.00018947,2]
[320097341,1711156240352,-164.86,0.00019019,2]